Cogmind - Beta 15 @@@ ROGUE MODE // 2025.08.31 @ 17:02:35 Player: odium reigns Result: Destroyed by P-70 Sage with High-powered Shock Rifle Performance ------------- Evolutions (5) 2500 Regions Visited (10) 2000 Robots Destroyed (92) 460 Value Destroyed (2753) 2753 Prototype IDs (10) 200 Alien Tech Used (0) 0 Bonus (500) 500 TOTAL SCORE: 8413 Bonus ------- Entered DSFs 500 Cogmind --------- Core Integrity 0/1000 Matter 209/300 Energy 14/100 System Corruption 19% Temperature Cool (2) Movement Hovering (70) Location -5/Factory Parts ------- > --- POWER (3) -------- (None) > --- PROPULSION (6) --- Gyrokinetic Inverter Gyrokinetic Inverter Gyrokinetic Inverter Gyrokinetic Inverter > --- UTILITY (4) ------ Improved Signal Interpreter Improved Propulsion Shielding Improved Propulsion Shielding > --- WEAPON (4) ------- (None) > --- INVENTORY (5) ---- Energy Well (83) Matter Compressor (250) Precision Energy Filter Improved Propulsion Shielding Advanced Field Recycling Unit (21) Peak State ------------ > --- POWER ------------ Fission Core Fission Core Fission Core > --- PROPULSION ------- Medium Treads Medium Treads Improved Medium Treads Improved Medium Treads Improved Medium Treads Improved Medium Treads > --- UTILITY ---------- Improved Heat Sink Energy Well Advanced ECM Suite Drone Bay > --- WEAPON ----------- Mass Driver Mass Driver Smartbomb Launcher > --- INVENTORY -------- Fission Core Energy Well Matter Compressor Improved Recalibrator Improved Field Recycling Unit [Rating: 86] Favorites ----------- Power Fission Core Engine Cooled Ion Engine Power Core Fission Core Propulsion Improved Medium Treads Treads Improved Medium Treads Leg Aluminum Leg Wheel Armored Wheel Hover Unit Airjet Flight Unit Improved Cesium-ion Thruster Utility Energy Well Device Cooling System Storage Energy Well Processor Advanced Targeting Computer Protection Improved Medium Armor Plating Weapon Long-range Proton Cannon Energy Gun Advanced Beam Rifle Energy Cannon Long-range Proton Cannon Ballistic Gun Enhanced Autogun Ballistic Cannon Mass Driver Launcher Smartbomb Launcher Impact Weapon Heavy Mace Slashing Weapon Katana Build | -11 -10 -9 -9 -8 -7 -7 -7 -6 -6 -5 ------- Run | Yrd Mat Mat Min Mat Fac Low Low Fac DSF Fac Slots Evolved 10 | . . 2 . 2 2 . . 2 . 2 Power 2 | . . . . . 1 . . 1 . . Propulsion 4 | . . 1 . 2 . . . . . 1 Utility 2 | . . . . . 1 . . 1 . . Weapon 2 | . . 1 . . . . . . . 1 Parts Attached 126 | 7 6 18 1 29 20 . . 1 12 32 Power 11 | 1 . 3 . 1 1 . . . 3 2 Engine 7 | 1 . 3 . 1 1 . . . . 1 Core 4 | . . . . . . . . . 3 1 Reactor . | . . . . . . . . . . . Propulsion 50 | 2 2 8 . 17 9 . . . 6 6 Treads 18 | . . 6 . 4 . . . . 6 2 Leg 2 | 2 . . . . . . . . . . Wheel 4 | . 2 2 . . . . . . . . Hover 22 | . . . . 13 5 . . . . 4 Flight 4 | . . . . . 4 . . . . . Utility 31 | 2 . 2 1 4 4 . . 1 3 14 Device 16 | 1 . 2 . 2 . . . . 2 9 Storage 5 | 1 . . 1 1 . . . . 1 1 Processor 4 | . . . . 1 2 . . . . 1 Hackware . | . . . . . . . . . . . Protection 6 | . . . . . 2 . . 1 . 3 Artifact . | . . . . . . . . . . . Weapon 34 | 2 4 5 . 7 6 . . . . 10 Energy Gun 14 | 2 4 2 . 4 . . . . . 2 Energy Cannon 6 | . . 2 . . . . . . . 4 Ballistic Gun 3 | . . . . 3 . . . . . . Ballistic Cannon 4 | . . . . . 1 . . . . 3 Launcher 3 | . . . . . 2 . . . . 1 Special Weapon . | . . . . . . . . . . . Impact Weapon 1 | . . . . . 1 . . . . . Slashing Weapon 3 | . . 1 . . 2 . . . . . Piercing Weapon . | . . . . . . . . . . . Special Melee Weapon . | . . . . . . . . . . . Unidentified Prototypes 9 | . . 3 . 3 1 . . . . 2 Parts Lost 49 | . 3 2 . 4 15 1 . . 1 23 Power 6 | . . . . . 2 . . . . 4 Propulsion 22 | . . 1 . 3 11 1 . . . 6 Utility 10 | . 1 . . . 1 . . . 1 7 Weapon 11 | . 2 1 . 1 1 . . . . 6 Highest Loss Streak 15 | . 3 2 . 2 8 1 . . 1 15 To Critical Strikes . | . . . . . . . . . . . Average Backups 7 | 3 7 7 8 10 10 5 5 4 4 4 Power . | 1 . 1 2 1 . . . . . . Propulsion 1 | 1 2 1 4 2 4 . . . . . Utility 3 | . 2 2 2 4 5 4 4 3 4 4 Weapon . | 1 1 1 . 1 . 1 1 1 . . Tool/Special . | . . . . . . . . . . . Unused Backups 37 | . 5 9 . 13 3 . . . 1 6 Power 9 | . 2 4 . 3 . . . . . . Propulsion 4 | . 1 2 . 1 . . . . . . Utility 19 | . 1 2 . 6 3 . . . 1 6 Weapon 5 | . 1 1 . 3 . . . . . . Tool/Special . | . . . . . . . . . . . Average Slot Usage (%) 83 | . 98 96 100 97 68 62 61 60 69 78 Engine 5 | . 14 11 11 9 4 . . . . 1 Core 4 | . . . . . . . . . 7 12 Treads 16 | . . 18 33 19 . . . . 9 23 Wheel 3 | . 22 14 . . . . . . . . Hover 8 | . . . . 23 26 8 7 6 2 1 Flight 2 | . . . . . 3 23 23 20 17 . Device 8 | . 13 10 11 6 1 . . . 4 12 Storage 6 | . 14 11 11 9 6 . . . 2 4 Processor 3 | . . . . 2 7 15 15 13 10 2 Protection 1 | . . . . . 2 7 7 13 6 1 Energy Gun 6 | . 27 14 11 7 6 . . . . . Energy Cannon 5 | . . 15 11 2 . . . . . 5 Ballistic Gun 2 | . . . . 14 1 . . . . . Ballistic Cannon 2 | . . . . . 1 . . . . 6 Slashing Weapon 1 | . . 1 11 2 2 . . . . . Peak Build Rating 86 | 9 14 20 20 42 48 37 33 37 61 86 Average Rating 42 | 5 12 16 20 32 34 33 33 37 45 68 On Entrance 27 | . 9 11 20 20 41 37 33 33 37 59 Naked Turns . | . . . . . . . . . . . Heaviest Build 82 | 15 17 26 29 37 42 10 10 17 46 82 Greatest Support 176 | 20 24 66 66 112 44 18 18 18 148 176 Greatest Overweight (x) 13 | 4 1 . . 1 13 . . . 1 3 Average Overweight (x) . | 1 . . . . . . . . . . Largest Inventory Capacity 15 | 8 8 8 10 15 15 5 5 5 5 5 Average Capacity 7 | 7 8 8 8 10 13 5 5 5 5 5 Most Carried 15 | 7 8 8 9 15 15 5 5 4 5 5 Average Carried 7 | 3 7 7 8 10 10 5 5 3 4 4 Final Capacity 15 | 8 8 8 10 15 5 5 5 5 5 5 Final Carried 15 | 7 6 8 9 15 5 5 5 4 5 5 Class Distribution -------------------- 37% | Mutant 28% | Gunner 17% | Skirmisher 10% | Tank 5% | Sprinter Dominant Class ---------------- Mutant | -10/Materials Gunner | -9/Materials Mutant | -9/Mines Gunner | -8/Materials Mutant | -7/Factory Sprinter | -7/Lower Caves Sprinter | -7/Lower Caves Sprinter | -6/Factory Mutant | -6/DSF Skirmisher | -5/Factory Resources | -11 -10 -9 -9 -8 -7 -7 -7 -6 -6 -5 ----------- Run | Yrd Mat Mat Min Mat Fac Low Low Fac DSF Fac Matter Collected 3039 | 329 73 325 70 886 190 45 86 160 10 865 Remotely . | . . . . . . . . . . . Salvage Created 3782 | 146 397 747 . 1537 338 . 86 . . 531 Parts 178 | 15 21 44 . 74 9 . . . . 15 Haulers Intercepted 7 | . . 3 . 4 . . . . . . Recyclers Shooed . | . . . . . . . . . . . Parts Field Recycled 36 | . . . . . . . . . 5 31 Retrieved Matter 562 | . . . . . . . . . 29 533 Parts Self-Destructed . | . . . . . . . . . . . Prevented . | . . . . . . . . . . . Kills | -11 -10 -9 -9 -8 -7 -7 -7 -6 -6 -5 ------- Run | Yrd Mat Mat Min Mat Fac Low Low Fac DSF Fac Combat Hostiles Destroyed 52 | . 7 10 . 20 8 . . . . 7 Guns 30 | . 6 7 . 13 4 . . . . . Cannons 14 | . . 2 . 7 1 . . . . 4 AOE 6 | . 1 . . . 2 . . . . 3 Classes Destroyed 15 | 3 2 5 . 2 . . 1 . . 2 Worker 10 | 1 . 2 . 4 . . . . . 3 Builder 4 | . . 1 . 2 . . . . . 1 Tunneler 3 | 2 . . . . . . . . . 1 Hauler 7 | . . 3 . 4 . . . . . . Recycler 8 | 1 1 2 . 2 . . . . . 2 Operator 2 | . . . . 2 . . . . . . Watcher 6 | . 2 2 . 2 . . . . . . Swarmer 4 | . . 3 . . 1 . . . . . Grunt 30 | . 7 5 . 14 2 . . . . 2 Brawler 1 | . . . . 1 . . . . . . Duelist 4 | . . 1 . 3 . . . . . . Sentry 9 | . . 1 . 2 5 . . . . 1 Hunter 2 | . . . . . . . . . . 2 Programmer 2 | . . . . . . . . . . 2 Samaritan 2 | . . . . . . . 2 . . . Best Kill Streak 10 | 2 7 8 . 10 2 . . . . 5 Combat Bots Only 8 | . 4 8 . 8 2 . . . . 4 Max Kills in Single Turn 2 | 1 2 1 . 2 1 . 1 . . 2 Gunslinging . | . . . . . . . . . . . Exploded 2 | . 1 . . . 1 . . . . 2 Melee . | . . . . . . . . . . . Uniques/NPCs Destroyed . | . . . . . . . . . . . Combat | -11 -10 -9 -9 -8 -7 -7 -7 -6 -6 -5 -------- Run | Yrd Mat Mat Min Mat Fac Low Low Fac DSF Fac Hostile Shots Fired 883 | . 27 47 . 84 357 47 1 . 68 252 Missed 286 | . 6 8 . 18 137 25 1 . 28 63 Hits 597 | . 21 39 . 66 220 22 . . 40 189 Projectile 597 | . 21 39 . 66 220 22 . . 40 189 AOE 5 | . . . . . . . . . . 5 Critical Strikes 20 | . . . . 4 3 1 . . 1 11 Part Disruptions 5 | . . . . . . . . . 3 2 Damage Taken 9540 | . 298 429 . 1519 2243 290 . . 653 4108 Core 1986 | . 59 23 . 417 399 61 . . 21 1006 Absorbed by Shields 250 | . . . . . . . . . . 250 Redirected to Shielding 130 | . . . . . . . . . . 130 Core Remaining (%) 70 | 100 76 . 94 24 . . 34 . 97 . Volleys Fired 266 | 10 20 50 . 100 37 . . . . 49 Largest 4 | 2 2 3 . 3 3 . . . . 4 Hottest 324 | 80 90 192 . 182 147 . . . . 324 Shots Fired 584 | 20 40 124 . 227 73 . . . . 100 Gun 370 | 20 40 63 . 187 57 . . . . 3 Cannon 199 | . . 61 . 40 6 . . . . 92 Launcher 15 | . . . . . 10 . . . . 5 Special . | . . . . . . . . . . . Kinetic 210 | . . . . 138 19 . . . . 53 Thermal 207 | . . 90 . 73 44 . . . . . Explosive 15 | . . . . . 10 . . . . 5 Electromagnetic 152 | 20 40 34 . 16 . . . . . 42 Robot Hit Streak 18 | 2 8 8 . 18 14 . . . . 8 Robot Miss Streak 7 | 3 2 7 . 5 3 . . . . 4 Penetration Max 1 | . . . . . . . . . . 1 Secondary Targets 4 | . 1 . . 2 1 . . . . . Max Gunslinging Chain 1 | . 1 . . 1 1 . . . . . Shots Hit Robots 371 | 10 34 73 . 142 52 . 2 . . 58 Core Hits 156 | 5 19 31 . 62 16 . . . . 23 Critical Kills 1 | . . 1 . . . . . . . . Critical Parts Destroyed . | . . . . . . . . . . . Critical Strikes 9 | . . 3 . 1 1 . . . . 4 Burn 4 | . . 2 . 1 1 . . . . . Meltdown 1 | . . 1 . . . . . . . . Blast 4 | . . . . . . . . . . 4 Melee Attacks 4 | . . . . . 2 . 2 . . . Impact 3 | . . . . . 1 . 2 . . . Slashing 1 | . . . . . 1 . . . . . Piercing . | . . . . . . . . . . . Sneak Attacks 2 | . . . . . . . 2 . . . Combat Hostiles . | . . . . . . . . . . . Follow-up Attacks . | . . . . . . . . . . . Damage Inflicted 9082 | 161 622 1273 . 2927 1487 . 215 . . 2397 Guns 4202 | 161 528 617 . 1939 915 . . . . 42 Cannons 2667 | . . 656 . 675 61 . . . . 1275 Explosions 1911 | . 94 . . 313 425 . . . . 1079 Melee 301 | . . . . . 86 . 215 . . . Ramming 1 | . . . . . . . . . . 1 Kinetic 2649 | . . . . 1279 256 . . . . 1114 Thermal 3066 | . 94 933 . 1112 927 . . . . . Explosive 1578 | . . . . 281 218 . . . . 1079 Electromagnetic 1487 | 161 528 340 . 255 . . . . . 203 Impact 246 | . . . . . 31 . 215 . . . Slashing 55 | . . . . . 55 . . . . . Piercing . | . . . . . . . . . . . Highest Corruption 19 | . . . . . 1 1 1 . 3 19 Average Corruption 5 | . . . . . 1 1 1 . 1 7 Corruption Purged . | . . . . . . . . . . . Corruption Blocked . | . . . . . . . . . . . Effects 28 | . . . . . 1 1 . . . 26 Message Errors 6 | . . . . . 1 . . . . 5 Matter Fused 7 | . . . . . . 1 . . . 6 Heat Flow Errors 3 | . . . . . . . . . . 3 Energy Discharges 3 | . . . . . . . . . . 3 Parts Rejected 2 | . . . . . . . . . . 2 Parts Fused 1 | . . . . . . . . . . 1 Data Loss (minor) 4 | . . . . . . . . . . 4 Misfires 1 | . . . . . . . . . . 1 Alerts 1 | . . . . . . . . . . 1 Overload Shots . | . . . . . . . . . . . Overflow Damage 706 | . 37 13 . 82 213 . 204 . . 157 Projectiles 97 | . . 13 . 30 . . . . . 54 Explosions 390 | . 37 . . 52 198 . . . . 103 Melee 219 | . . . . . 15 . 204 . . . Knockbacks 9 | . . . . . . . . . . 9 Impact . | . . . . . . . . . . . Kinetic 9 | . . . . . . . . . . 9 Secondary . | . . . . . . . . . . . Self-Inflicted Damage 646 | . 47 11 . 228 224 . . . . 136 Shots 11 | . 1 1 . 3 2 . . . . 4 Rammed 2 | . . . . . . . . . . 2 Targets Rammed 2 | . . . . . . . . . . 2 Kicked . | . . . . . . . . . . . Crushed . | . . . . . . . . . . . Highest Temperature 576 | 54 216 334 . 542 463 1 . . . 576 Average Temperature 132 | 22 73 68 . 188 149 1 . . . 159 Received Heat Transfer 1851 | . 138 186 . 648 642 78 . . 9 150 Effects 40 | . . . . 20 6 . . . . 14 Shutdowns 11 | . . . . 3 . . . . . 8 Energy Bleed 3 | . . . . 3 . . . . . . Interference 12 | . . . . 4 6 . . . . 2 Short Circuit 3 | . . . . 3 . . . . . . Damage (minor) 2 | . . . . 1 . . . . . 1 Damage (major) 5 | . . . . 3 . . . . . 2 Damage (core) 4 | . . . . 3 . . . . . 1 Siege Activations . | . . . . . . . . . . . Martial Activations . | . . . . . . . . . . . Shielding Activations . | . . . . . . . . . . . Robots Disrupted . | . . . . . . . . . . . Combat Hostiles . | . . . . . . . . . . . Robots Corrupted 3 | . 1 . . . . . 2 . . . Combat Hostiles . | . . . . . . . . . . . Parts Fried 2 | . . . . . . . 2 . . . Impact Corruptions 17 | . . . . . . . 17 . . . Robots Melted 3 | . . 2 . . 1 . . . . . Combat Hostiles 2 | . . 1 . . 1 . . . . . Parts Melted 17 | . 1 4 . 5 7 . . . . . Heat Transferred 5937 | . 150 2035 . 2196 1556 . . . . . Parts Sabotaged . | . . . . . . . . . . . Parts Stolen . | . . . . . . . . . . . Parts Stripped . | . . . . . . . . . . . Power Chain Reactions 4 | . 2 1 . 1 . . . . . . Alert | -11 -10 -9 -9 -8 -7 -7 -7 -6 -6 -5 ------- Run | Yrd Mat Mat Min Mat Fac Low Low Fac DSF Fac Maximum Alert Level 1 | . . 1 . 1 . . . . . 1 Low Security (%) 91 | 100 100 96 100 66 100 . . 100 100 96 Level 1 8 | . . 3 . 33 . . . . . 3 Level 2 . | . . . . . . . . . . . Level 3 . | . . . . . . . . . . . Level 4 . | . . . . . . . . . . . Level 5 . | . . . . . . . . . . . High Security . | . . . . . . . . . . . Max Security . | . . . . . . . . . . . Peak Influence 273 | 5 121 200 47 273 171 . . 145 121 218 Initial 145 | . 3 50 47 6 86 . . 145 101 63 Average 102 | . 56 138 35 165 58 . . 145 106 90 Influence Increases 2543 | 20 206 339 . 688 477 255 . . 30 528 Destroy 0b10 Robot/C 1040 | . 140 200 . 400 160 . . . . 140 Destroy 0b10 Robot/NC 200 | 20 15 50 . 80 . . . . . 35 Destroy Leader 246 | . 34 50 . 92 30 . . . . 40 Successful Hack 43 | . 5 . . 2 7 . . . . 29 Disable Machine 255 | . . 15 . 60 90 . . . . 90 Destroy Structure 279 | . 12 9 . 39 85 . . . . 134 Partial Spotted 30 | . . 15 . . 15 . . . . . Lose Combat Pursuer 450 | . . . . 15 90 255 . . 30 60 Influence Decreases 2508 | 15 90 337 106 515 504 131 55 87 54 614 Entered New Map 569 | . 2 71 76 11 104 61 55 87 44 58 Time Decay 1310 | 15 58 246 30 314 172 60 . . . 415 Lost Part 363 | . 30 20 . 40 122 10 . . 10 131 Lost Ally 10 | . . . . . . . . . . 10 Purge Threat 256 | . . . . 150 106 . . . . . Squads Dispatched 22 | . 1 2 . 4 5 . . . 1 9 Investigation 5 | . 1 1 . 1 1 . . . . 1 Extermination 4 | . . . . . 1 . . . . 3 Reinforcement 7 | . . 1 . 3 . . . . 1 2 Assault . | . . . . . . . . . . . Garrison 6 | . . . . . 3 . . . . 3 Intercept . | . . . . . . . . . . . Searches Triggered . | . . . . . . . . . . . Construction Impeded . | . . . . . . . . . . . Haulers Reinforced . | . . . . . . . . . . . Active Scanning Responses . | . . . . . . . . . . . Cargo Convoy Interrupts 1 | . . . . . . . . . . 1 Stealth | -11 -10 -9 -9 -8 -7 -7 -7 -6 -6 -5 --------- Run | Yrd Mat Mat Min Mat Fac Low Low Fac DSF Fac Distress Signals 10 | . 1 2 . 4 . . . . . 3 Communications Jammed . | . . . . . . . . . . . Distress Signals . | . . . . . . . . . . . Times Spotted 117 | . 9 19 . 26 18 20 3 . 6 16 Peak Tracking Total 8 | . 5 5 . 4 7 8 3 . 5 6 Tactical Retreats 15 | . . . . 1 4 5 . . 2 3 Traps | -11 -10 -9 -9 -8 -7 -7 -7 -6 -6 -5 ------- Run | Yrd Mat Mat Min Mat Fac Low Low Fac DSF Fac Traps Triggered 5 | . . 1 . . 3 . . . . 1 Indirectly . | . . . . . . . . . . . Trap Hack Attempts . | . . . . . . . . . . . Triggered . | . . . . . . . . . . . Disarmed . | . . . . . . . . . . . Reprogrammed . | . . . . . . . . . . . Reused . | . . . . . . . . . . . Traps Extracted . | . . . . . . . . . . . Installed . | . . . . . . . . . . . Triggered . | . . . . . . . . . . . Machines | -11 -10 -9 -9 -8 -7 -7 -7 -6 -6 -5 ---------- Run | Yrd Mat Mat Min Mat Fac Low Low Fac DSF Fac Machines Disabled 17 | . . 1 . 4 6 . . . . 6 Max in Single Turn 2 | . . 1 . 2 2 . . . . 1 Machines Repaired . | . . . . . . . . . . . Machines Dismantled . | . . . . . . . . . . . Machines Sabotaged . | . . . . . . . . . . . Overloaded Fab Kills . | . . . . . . . . . . . Hacking | -11 -10 -9 -9 -8 -7 -7 -7 -6 -6 -5 --------- Run | Yrd Mat Mat Min Mat Fac Low Low Fac DSF Fac Machines Accessed 17 | . 1 . . 4 5 1 . 2 . 4 Terminals 13 | . 1 . . 3 3 1 . 1 . 4 Fabricators 3 | . . . . . 2 . . 1 . . Repair Stations . | . . . . . . . . . . . Recycling Units . | . . . . . . . . . . . Scanalyzers 1 | . . . . 1 . . . . . . Garrison Access . | . . . . . . . . . . . Total Hacks 40 | . 4 . . 11 11 1 . 4 . 9 Successful 18 | . 2 . . 5 4 1 . 2 . 4 Failed 22 | . 2 . . 6 7 . . 2 . 5 Catastrophic 1 | . . . . . 1 . . . . . Database Lockouts . | . . . . . . . . . . . Manual 1 | . . . . 1 . . . . . . Terminals 31 | . 4 . . 9 7 1 . 1 . 9 Fabricators 7 | . . . . . 4 . . 3 . . Repair Stations . | . . . . . . . . . . . Recycling Units . | . . . . . . . . . . . Scanalyzers 2 | . . . . 2 . . . . . . Garrison Access . | . . . . . . . . . . . Terminal Hacks 14 | . 2 . . 3 3 1 . 1 . 4 Record 2 | . . . . . . 1 . . . 1 Part Schematic 1 | . . . . . 1 . . . . . Robot Analysis 1 | . 1 . . . . . . . . . Open DSF 4 | . . . . . 1 . . 1 . 2 Alert Level 3 | . 1 . . 2 . . . . . . Unreport Threat 2 | . . . . 1 1 . . . . . Zone Layout 1 | . . . . . . . . . . 1 Fabricator Hacks 2 | . . . . . 1 . . 1 . . Load Schematic 2 | . . . . . 1 . . 1 . . Repair Station Hacks . | . . . . . . . . . . . Recycling Unit Hacks . | . . . . . . . . . . . Scanalyzer 2 | . . . . 2 . . . . . . Insert Component 1 | . . . . 1 . . . . . . Analyze 1 | . . . . 1 . . . . . . Garrison Access Hacks . | . . . . . . . . . . . Unauthorized Hacks . | . . . . . . . . . . . Terminals . | . . . . . . . . . . . Fabricators . | . . . . . . . . . . . Repair Stations . | . . . . . . . . . . . Recycling Units . | . . . . . . . . . . . Scanalyzers . | . . . . . . . . . . . Garrison Access . | . . . . . . . . . . . Data Cores Recovered . | . . . . . . . . . . . Used . | . . . . . . . . . . . Hacking Detections 11 | . 1 . . 2 4 . . 1 . 3 Full Trace Events 3 | . 1 . . 1 . . . . . 1 Feedback Events . | . . . . . . . . . . . Feedback Blocked . | . . . . . . . . . . . Robot Schematics Acquired . | . . . . . . . . . . . Robots Built . | . . . . . . . . . . . Authchips . | . . . . . . . . . . . Time . | . . . . . . . . . . . Total Robot Build Rating . | . . . . . . . . . . . Part Schematics Acquired 2 | . . . . 1 1 . . . . . Parts Built . | . . . . . . . . . . . Authchips . | . . . . . . . . . . . Time . | . . . . . . . . . . . Total Part Build Rating . | . . . . . . . . . . . Parts Repaired . | . . . . . . . . . . . Time . | . . . . . . . . . . . Parts Recycled . | . . . . . . . . . . . Recycled Matter . | . . . . . . . . . . . Retrieved Matter . | . . . . . . . . . . . Retrieved Components . | . . . . . . . . . . . Parts Scanalyzed 1 | . . . . 1 . . . . . . Part Schematics Acquired 1 | . . . . 1 . . . . . . Parts Damaged . | . . . . . . . . . . . Bothacking | -11 -10 -9 -9 -8 -7 -7 -7 -6 -6 -5 ------------ Run | Yrd Mat Mat Min Mat Fac Low Low Fac DSF Fac Used RIF Installer . | . . . . . . . . . . . Robots Hacked . | . . . . . . . . . . . Non-combat . | . . . . . . . . . . . Combat . | . . . . . . . . . . . Robot Hacks Applied . | . . . . . . . . . . . Relay Couplers Released . | . . . . . . . . . . . Fabnet Peak Effective % . | . . . . . . . . . . . Robots Rewired . | . . . . . . . . . . . Allies Hacked . | . . . . . . . . . . . Hacks Repelled . | . . . . . . . . . . . Allies | -11 -10 -9 -9 -8 -7 -7 -7 -6 -6 -5 -------- Run | Yrd Mat Mat Min Mat Fac Low Low Fac DSF Fac Total Allies . | . . . . . . . . . . . Largest Group . | . . . . . . . . . . . Highest-Rated Group . | . . . . . . . . . . . Highest-Rated Ally . | . . . . . . . . . . . Total Orders 1 | . . . . . . . . . . 1 EXPLORE 1 | . . . . . . . . . . 1 Ally Attacks . | . . . . . . . . . . . Total Damage . | . . . . . . . . . . . Kills . | . . . . . . . . . . . Allies Corrupted . | . . . . . . . . . . . Allies Melted . | . . . . . . . . . . . Intel | -11 -10 -9 -9 -8 -7 -7 -7 -6 -6 -5 ------- Run | Yrd Mat Mat Min Mat Fac Low Low Fac DSF Fac Active Infowar (turns) 1516 | 69 141 . . 174 . . . . . 1132 Optics 174 | . . . . 174 . . . . . . Sensors 426 | . . . . . . . . . . 426 Terrain 210 | 69 141 . . . . . . . . . ECM 706 | . . . . . . . . . . 706 Robot Analysis Total 1 | . 1 . . . . . . . . . Derelict Logs Recovered 3 | . . . . . . 2 1 . . . Drone Launches 2 | . . . . . . . . . . 2 Drone Recoveries 1 | . . . . . . . . . . 1 Exploration | -11 -10 -9 -9 -8 -7 -7 -7 -6 -6 -5 ------------- Run | Yrd Mat Mat Min Mat Fac Low Low Fac DSF Fac Turns Passed 3749 | 158 157 524 64 705 468 125 15 18 161 1354 Spaces Moved 2808 | 67 78 265 39 580 465 347 32 50 125 760 Core 58 | 30 . . . . 2 . . . . 26 Treads 928 | . . 115 39 98 . . . . 44 632 Legs 53 | 37 16 . . . . . . . . . Wheels 212 | . 62 150 . . . . . . . . Hover 923 | . . . . 482 339 . . . . 102 Flight 634 | . . . . . 124 347 32 50 81 . Fastest Speed 30 | 50 90 90 160 44 32 30 30 30 30 50 Average Speed 90 | 160 97 120 160 63 59 30 30 30 83 145 Slowest Speed 700 | 250 190 160 160 160 700 30 30 30 240 200 Overloaded Moves . | . . . . . . . . . . . Propulsion Burnouts . | . . . . . . . . . . . Robots Hopped 1 | . . . . . 1 . . . . . Potential Cave-ins 2 | . . . . . . . . . . 2 Cave-ins Triggered . | . . . . . . . . . . . Exploration Rate (%) 26 | 6 17 24 15 46 13 64 7 3 76 21 Regions Visited 10 Branch Regions 3 Pre-discovered Areas . | . . . . . . . . . . . Known Exits Taken 1 | . . . . . . . . 1 . . Unknown Exits Taken 8 | 1 1 1 1 1 1 1 1 . . . Scrap Searched 1 | . . . . . . 1 . . . . Spaces Dug . | . . . . . . . . . . . Terrain Destroyed 240 | . 13 4 . 41 105 . . . . 77 Melee . | . . . . . . . . . . . Projectile 15 | . . . . . 1 . . . . 14 AOE 225 | . 13 4 . 41 104 . . . . 63 Terrain Rammed . | . . . . . . . . . . . Walls Destroyed . | . . . . . . . . . . . Machines Disabled . | . . . . . . . . . . . Actions | -11 -10 -9 -9 -8 -7 -7 -7 -6 -6 -5 --------- Run | Yrd Mat Mat Min Mat Fac Low Low Fac DSF Fac Total 3574 | 97 121 381 41 785 603 367 33 52 182 912 Wait 129 | . 3 5 . 4 39 21 . . 30 27 Move 2796 | 66 77 264 38 579 462 346 31 49 124 760 Hop 1 | . . . . . 1 . . . . . Pick Up 110 | 14 6 21 1 35 14 . . 1 5 13 Fast Attach 56 | . 4 4 . 8 6 . . . 9 25 Attach 49 | 7 2 6 . 5 21 . . 1 2 5 Detach 6 | . . . . 1 3 . . . 1 1 Swap 42 | . . 9 1 18 1 . . . 2 11 Drop 113 | . 9 22 1 35 17 . . 1 9 19 Fire 266 | 10 20 50 . 100 37 . . . . 49 Melee 4 | . . . . . 2 . 2 . . . Ram 2 | . . . . . . . . . . 2 Kick . | . . . . . . . . . . . Crush . | . . . . . . . . . . . Escape Stasis . | . . . . . . . . . . . Rewire . | . . . . . . . . . . . Trap . | . . . . . . . . . . . Miscellaneous . | . . . . . . . . . . . Route ------- -11/Scrapyard -10/Materials -9/Materials -9/Mines -8/Materials -7/Factory -7/Lower Caves -7/Lower Caves -6/Factory (discovered 2 exits: Low / DSF) -6/DSF -5/Factory History --------- Turn | Location | Event 7 | -11/Scrapyard | Discovered new exit (range 16) 159 | -11/Scrapyard | Entered Materials 279 | -10/Materials | Discovered new exit (range 16) 316 | -10/Materials | Build established: Mutant 316 | -10/Materials | Entered another Materials area 316 | -9/Materials | Evolved 2 slots: Propulsion x1, Weapon x1 331 | -9/Materials | Lost 3 parts (1u2w) 446 | -9/Materials | Destroyed 8 combat bots 674 | -9/Materials | Discovered new exit (range 11) 733 | -9/Materials | Build established: Gunner 840 | -9/Materials | Entered Mines 871 | -9/Mines | Discovered new exit (range 8) 904 | -9/Mines | Entered Materials 904 | -8/Materials | Evolved 2 slots: Propulsion x2 1053 | -8/Materials | Destroyed 8 combat bots 1072 | -8/Materials | Build established: Mutant 1402 | -8/Materials | Core integrity fell below 50% 1585 | -8/Materials | Discovered new exit (range 15) 1609 | -8/Materials | Entered Factory 1609 | -7/Factory | Evolved 2 slots: Power x1, Utility x1 1655 | -7/Factory | Garrison activated, responded to threat 1895 | -7/Factory | Lost 3 parts (2n1u) 1953 | -7/Factory | Core integrity fell below 50% 1997 | -7/Factory | Lost 8 parts (7n1w) 2065 | -7/Factory | Discovered new exit (range 3) 2077 | -7/Factory | Entered Lower Caves 2080 | -7/Lower Caves | Encountered a Warlord checkpoint 2108 | -7/Lower Caves | Spotted B-75 Beast 2125 | -7/Lower Caves | Learned location of 1 exit from Factory 2126 | -7/Lower Caves | Learned Factory terminal intel 2159 | -7/Lower Caves | Attracted the attention of an 0b10 checkpoint 2178 | -7/Lower Caves | Discovered new exit (range 15) 2202 | -7/Lower Caves | Entered another Lower Caves area 2213 | -7/Lower Caves | Discovered new exit (range 14) 2217 | -7/Lower Caves | Entered Factory 2217 | -6/Factory | Evolved 2 slots: Power x1, Utility x1 2218 | -6/Factory | Identified exit to Lower Caves 2219 | -6/Factory | Loaded intel: 26 terminal locations 2235 | -6/Factory | Identified exit to DSF 2235 | -6/Factory | Entered DSF 2265 | -6/DSF | Additional patrols routed to DSF 2298 | -6/DSF | Discovered new exit (range 11) 2396 | -6/DSF | Entered Factory 2396 | -5/Factory | Evolved 2 slots: Propulsion x1, Weapon x1 2662 | -5/Factory | Garrison activated, responded to threat 2710 | -5/Factory | Lost 4 parts (2n2u) 3077 | -5/Factory | Cargo convoy interrupted 3437 | -5/Factory | Build established: Skirmisher 3571 | -5/Factory | System corruption reached 10% 3643 | -5/Factory | Core integrity fell below 50% 3672 | -5/Factory | Lost 15 parts (3p4n4u4w) 3732 | -5/Factory | Core integrity fell below 20% 3750 | -5/Factory | Destroyed by P-70 Sage with High-powered Shock Rifle Last Messages --------------- ALERT: Suspicious intruders detected, dispatching Specialist reinforcements to area. Acquired Lightning Gun. A-15 Conveyor sends out distress signal. System corrupted: Component data lost. Slammed into A-15 Conveyor. Imp. Signal Interpreter broken. Destabilizing: Short circuit. Slammed into A-15 Conveyor. System corrupted: Matter fused (-6). Imp. Core Shielding destroyed. System corrupted: Heat flow error (+131). W-25 Informer sends out distress signal. Acquired Gyrokinetic Inverter. Fusion Modulator explodes. Lightning Gun destroyed. Fabricator disabled. Fusion Modulator explodes. W-25 Informer destroyed. K-01 Serf collects debris. Map ----- +----------------------------------------------------+ | ?????????????????????????????????????????????????? | | ?????????????????????????????????????????????????? | | ?????????????????????????????????????????????????? | | ?????????????????????????????????????????????????? | | ?????????????????????????????????????????????????? | | ?????????????????????????????????????????????????? | | ?????????????????????????????????????????????????? | | ?????????????????????????????????????????????????? | | ?????????????????????????????????????????????????? | | ?????????????????????????????????????????????????? | | ?????????????????????????????????????????????????? | | ?????????????##+############?????????????????????? | | ?????????????# #?????????????????????? | | ?????????????? #?????????????????????? | | ???????????##?? #?????????????????????? | | ??????????? ??? #????"" #?????????????? | | ???????????# #??? #???""" #?????????????? | | ???????????# #???? ##?? #?????????????? | | ?????????### ###??#;;;;;;;;;#? #?????????????? | | ?????????# #?##;;;;;;;;;# ! #?????????????? | | ?????????# k###; ;# R #?????????????? | | ?????????# up; ;/! #?????????????? | | ?????????# ###; #! #?????????????? | | ?????????# #?# #?????????????? | | ?????????## ##?# ;####+#??????????????? | | ??????????# #??#; @= ????????? | | ??????????# #??#; ????????? | | ?########## #??#; ;k ????????? | | ?+ #??## ; " " """ "?????????? | | ?#### ### ##???#;;;;;;;;;! "G" k""????????????? | | ????# #?# #??? # """ "?????????????? | | ????# #?# #??#!! "" # ???????????????? | | ????# #?# #??#!! "" # ???????????????? | | ????# #?# #??# """ # ###??????????????? | | ##??# #?# #??# ! """ #? #????????????????? | | #??# #?# #??# ?"" #? #????????????????? | | #### #?# #??# ??? #? #????????????????? | | + #?# #??# ??? #?? #????????????????? | | # #??+????????????#??? k#????????????????? | | # #??????????????????? ???????????????????? | | # #???????????????????????????????????????? | | ## #???????????????????????????????????????? | | ?# #???????????????????????????????????????? | | ?# #???????????????????????????????????????? | | ?####### #???????????????????????????????????????? | | ???????? #???????????????????????????????????????? | | ???????? #???????????????????????????????????????? | | ????????+#???????????????????????????????????????? | | ?????????????????????????????????????????????????? | | ?????????????????????????????????????????????????? | +----------------------------------------------------+ Best States ------------- Heat Dissipation 66 Energy Generation 44 Energy Capacity 1080 Matter Stores 300 Matter Capacity 550 Sight Range 20 Robot Scan Range 15 Terrain Scan Range 16 Terrain Scan Density 10 ECM Strength 2 Armor Coverage 450 Core Shielding 30 Propulsion Shielding 66 Evasion (%) 64 Targeting Accuracy 8 Recoil Reduction 6 Energy Filtering 50 Salvage Targeting 2 Item Schematics ----------------- Aerolev Unit | -8/Materials | Scanalyzed Imp. Particle Charger | -7/Factory | Hacked Robot Schematics ------------------ None Fabricated ------------ Nothing Repaired ---------- Nothing Alien Tech Used ----------------- None Achievements -------------- None Challenges ------------ None Game ------ Seed MultitargetingWeaponsUnit Manual? 0 Play Time 01:36:22 Cumulative 18.6 hours Start 2025.08.31 @ 15:25:05 End 2025.08.31 @ 17:02:35 Sessions 1 Manual Loads 0 Difficulty Rogue Special Mode None Game No. 14 Rogue 14 Adventurer 0 Explorer 0 Win Type - Total 0 Types 0/0/0/0/0/0/0/0/0/0 Lore% 5 Gallery% 22 Achievement% 18 Wizard Run 0 Options --------- Layout 0 ASCII 0 Keyboard 0 Movement Mouse Keybinds 0 Fullscreen 1 Font 12/Smallcaps Map View 38x28 Zoom Use 99% Tactical HUD 0 Map Filters NONE Filters NONE Steam SD RUN: 9d7e1e3b-6559-4ab6-905e-17c7be737c26